[Event "Charlotte GM-A May 2022"]
[Site "Charlotte"]
[Date "2022.05.06"]
[Round "3.1"]
[White "Stremavicius, Titas"]
[Black "Korley, Kassa"]
[Result "1/2-1/2"]
[ECO "A14"]
[WhiteElo "2508"]
[BlackElo "2413"]
[Annotator "TA"]
[PlyCount "187"]
[EventDate "2022.05.04"]
[EventType "tourn"]
[EventCountry "USA"]
[SourceTitle "playchess.com"]
[Source "ChessBase"]
[SourceQuality "1"]
[TimeControl "5400+30"]

{[%evp 27,187,-27,-22,-31,-17,-58,-41,-47,-36,-43,-45,-45,-45,-59,-12,-23,-33,-35,-32,-67,-70,-71,-77,-75,-78,-83,-58,-63,-60,-81,-91,-78,-69,-61,0,-69,-76,-92,-70,-84,-40,-38,-38,-47,0,-39,-25,-23,-26,-29,-24,-25,-18,-33,-33,-48,-55,-55,-55,-43,-48,-47,0,0,0,-39,-32,-43,-48,-115,-115,-111,-112,-114,-110,-108,0,-94,-54,-92,0,-98,-50,-225,-201,-214,-222,-216,-196,-193,-91,-151,-140,-139,-92,-101,-83,-83,-72,-88,-98,-106,-56,-56,-38,-62,-62,-63,-63,-63,-64,-69,-69,-266,-266,-266,0,0,0,0,0,-8,-8,-8,0,-8,0,-8,0,-8,-8,-8,0,0,0,0,0,-404,0,-377,0,-444,0,0,0,0,0,0,0,0,0,0,0,0,0,0,0,0,0,0,0,-8]} 1. c4 {[%emt 1:31:00]} e6 {[%emt 0:00:30]} 2. g3 {[%emt 0:00:00]} d5 {[%emt 0:00:04]} 3. Nf3 {[%emt 0:00:00]} Nf6 {[%emt 0:00:13]} 4. Bg2 {[%emt 0:00:00]} Be7 {[%emt 0:00:06]} 5. O-O {[%emt 0:00:00]} O-O {[%emt 0:00:06]} 6. b3 {[%emt 0:00:00]} b6 {[%emt 0:00:32]} 7. Bb2 {[%emt 0:00:00]} Bb7 {[%emt 0:00:11]} 8. e3 {[%emt 0:00:00]} c5 {[%emt 0:01:51]} 9. Nc3 {[%emt 0:00:00]} Nbd7 {[%emt 0:08:27]} 10. Qe2 {[%emt 0:00:00]} Ne4 {[%emt 0:01:54]} 11. cxd5 {[%emt 0:00:00]} Nxc3 {[%emt 0:03:58]} 12. Bxc3 {[%emt 0:00:00]} Bxd5 {[%emt 0:02:22]} 13. e4 {[%emt 0:00:00]} Bb7 {[%emt 0:00:04]} 14. e5 {[%emt 0:00:00]} Rc8 {[%emt 0:04:04]} 15. h4 {[%emt 0:00:00]} Rc7 {[%emt 0:02:15]} 16. h5 {[%emt 0:00:00]} Qa8 {[%emt 0:05:13]} 17. Ne1 {[%emt 0:00:00]} Rd8 {[%emt 0:02:14]} 18. Rd1 {[%emt 0:00:00]} Nb8 {[%emt 0:01:35]} 19. f4 {[%emt 0:00:00]} Nc6 {[%emt 0:07:28]} 20. f5 {[%emt 0:00:00]} Nd4 {[%emt 0:06:08]} (20... exf5 $15 21. e6 Bf6 22. Bxc6 (22. Bxf6 gxf6 23. Nc2 Re7 $15) 22... Bxc3 23. dxc3 (23. exf7+ Rxf7 24. dxc3 Bxc6 $17) 23... Bxc6 24. Rxd8+ Qxd8 25. Rxf5 Qd6) 21. Bxd4 $11 {[%emt 0:00:00]} Rxd4 {[%emt 0:00:14]} 22. fxe6 {[%emt 0:00:00]} fxe6 {[%emt 0:00:09]} 23. Qf2 {[%emt 0:00:00]} Qe8 {[%emt 0:03:05]} 24. Bxb7 {[%emt 0:00:00]} Rxb7 {[%emt 0:49:47]} 25. Nf3 {[%emt 0:00:00]} Rd3 {[%emt 0:00:00]} 26. Qh2 {[%emt 0:00:00]} Qc6 {[%emt 0:00:00]} 27. Qe2 {[%emt 0:00:00]} Rbd7 {[%emt 0:00:00]} 28. Kh2 {[%emt 0:00:00]} Rd8 {[%emt 0:00:00]} 29. Ne1 {[%emt 0:00:00]} R3d7 {[%emt 0:00:00]} 30. Nf3 {[%emt 0:00:00]} Rd3 {[%emt 0:00:00]} 31. Ne1 $1 {[%emt 0:00:00]} R3d5 {[%emt 0:00:00]} 32. Nf3 {[%emt 0:00:00]} Qe8 {[%emt 0:00:00]} 33. g4 {[%emt 0:00:00]} Qd7 {[%emt 0:00:00]} (33... g6 {is interesting.} 34. Qe3 Rd3 35. Qh6 Qf8) 34. Qe4 {[%emt 0:00:00]} Rf8 {[%emt 0:00:00]} 35. Rde1 {[%emt 0:00:00]} Rd3 {[%emt 0:00:00]} (35... a6 $15 {was preferrable.}) 36. Kg2 {[%emt 0:00:25]} a5 {[%emt 0:00:00]} 37. Re3 {[%emt 0:02:12]} Rd5 {[%emt 0:00:00]} 38. a4 {[%emt 0:00:36]} Bd8 {[%emt 0:00:00]} 39. Rf2 {[%emt 0:03:45]} Qf7 {[%emt 0:00:00]} 40. Ree2 {[%emt 0:00:02]} Qf4 {[%emt 0:00:00]} 41. Qxf4 {[%emt 0:02:29]} Rxf4 {[%emt 0:00:00]} 42. Kg3 {[%emt 0:00:12]} Rb4 {[%emt 0:00:00]} 43. Re3 {[%emt 0:00:06]} h6 {[%emt 0:00:00]} 44. Rc3 {[%emt 0:05:38]} Re4 {[%emt 0:01:53]} (44... Bg5 $15 45. Re2 Bf4+ 46. Kg2 Bg5) 45. Re3 $1 $11 {[%emt 0:01:24]} Rb4 {[%emt 0:01:21]} 46. Rc3 $1 {[%emt 0:00:03]} Be7 {[%emt 0:02:09]} 47. Re2 {[%emt 0:00:49]} Bg5 {[%emt 0:00:23]} 48. Kh3 {[%emt 0:01:28]} (48. d3 $1 $15) 48... Rf4 $1 $17 {[%emt 0:01:38]} 49. Kg3 {[%emt 0:01:37]} Rf8 {[%emt 0:00:39]} 50. d3 {[%emt 0:00:51]} Rfd8 {[%emt 0:01:38]} 51. Ne1 {[%emt 0:00:03]} Rf8 {[%emt 0:00:54]} (51... g6 $17 52. Rc4 Kg7) 52. Rc4 {[%emt 0:01:14]} (52. Nf3 $11) 52... Rd7 {[%emt 0:00:36]} (52... g6 {looks sharper.} 53. Ree4 gxh5 54. gxh5 Rf1) 53. Kg2 {[%emt 0:00:33]} Rd5 {[%emt 0:00:21]} (53... Rfd8 $17 54. Kg3 g6) 54. Rce4 {[%emt 0:01:15]} (54. Kg3 $1 $11 {remains equal.}) 54... Rf4 {[%emt 0:01:24]} (54... g6 $17 55. Rc2 Rfd8) 55. Kg3 $2 {[%emt 0:01:14]} ({White should try} 55. Rxf4 $15 Bxf4 56. Kf3 Rxe5 57. Re4 Rxe4 58. dxe4) 55... Rxe4 $1 $19 {[%emt 0:00:45]} 56. dxe4 {[%emt 0:00:20]} Rd1 {[%emt 0:00:11]} 57. Nf3 {[%emt 0:00:30]} Rd3 {[%emt 0:01:11]} 58. Rb2 {[%emt 0:00:28]} Re3 {[%emt 0:00:03]} (58... Be3 $19 59. Rb1 Kf7) 59. Rb1 {[%emt 0:01:02]} (59. Kf2 $142 Rxe4 60. Nxg5 hxg5 61. Rd2) 59... Rxe4 $17 {[%emt 0:01:25]} 60. Rd1 {[%emt 0:00:02]} Bf4+ {[%emt 0:00:19]} (60... Rb4 $142 $1 61. Nxg5 hxg5 62. Rd8+ Kf7 63. Rd7+ Kf8 64. Rd8+ Ke7) 61. Kf2 $17 {[%emt 0:00:42]} Be3+ {[%emt 0:00:34]} 62. Kg3 {[%emt 0:00:09]} Bd4 {[%emt 0:00:16]} 63. Nxd4 {[%emt 0:00:17]} cxd4 {[%emt 0:00:14]} ({But not} 63... Rxd4 $6 64. Rxd4 cxd4 65. Kf4 $11) 64. Kf3 {[%emt 0:00:56]} Rxe5 {[%emt 0:01:21]} (64... Re3+ $17 65. Kf2 Rxe5 66. Rxd4 Rd5) 65. Rxd4 $15 {[%emt 0:00:07]} Rc5 {[%emt 0:00:21]} 66. Rd6 {[%emt 0:00:46]} Rc3+ {[%emt 0:00:03]} 67. Kf4 {[%emt 0:00:09]} Rxb3 {[%emt 0:00:05]} 68. Rxe6 {[%emt 0:00:04]} Rb4+ {[%emt 0:00:53]} 69. Kf5 {[%emt 0:01:39]} Rxa4 {[%emt 0:00:52]} 70. g5 $2 {[%emt 0:00:46] [#]} (70. Rxb6 $15 Kh7 71. Ra6) 70... hxg5 $1 $19 {[%emt 0:00:14]} 71. Rxb6 {[%emt 0:00:26] [#]} Kh7 $2 {[%emt 0:00:56]} (71... g4 $1 $19 {Hoping for ...Rb4.} 72. Kg6 Rf4) 72. Kxg5 $11 {[%emt 0:00:04]} Ra1 {[%emt 0:00:37]} (72... Rb4 $5 73. Ra6 Rb5+ 74. Kg4 Re5 $11) 73. Ra6 {[%emt 0:00:14]} a4 {[%emt 0:00:05]} 74. Kg4 {[%emt 0:00:05]} a3 {[%emt 0:00:16]} 75. Kg3 {[%emt 0:00:04]} Kg8 {[%emt 0:00:38]} (75... a2 $5 {[%cal Ra1g1]} 76. Kh2 Kg8 $19) 76. Ra7 {[%emt 0:00:08]} Kh7 {[%emt 0:00:36]} 77. Ra6 $1 {[%emt 0:00:06]} Kg8 {[%emt 0:00:41]} 78. Ra7 {[%emt 0:00:05]} a2 {[%emt 0:00:16]} 79. Kg2 {[%emt 0:00:05]} Kf8 {[%emt 0:00:04]} (79... Kh7 $5 80. Ra8 Kh6 $11) 80. Kh2 {[%emt 0:00:12]} Ke8 {[%emt 0:00:11]} 81. h6 {[%emt 0:00:11]} gxh6 {[%emt 0:00:06]} 82. Kg2 $2 {[%emt 0:00:05][%mdl 8192]} (82. Ra8+ $11 Ke7 83. Kg2) 82... h5 $2 {[%emt 0:00:09]} (82... Kd8 $19 83. Ra8+ Ke7) 83. Kh2 $2 {[%emt 0:00:05][%mdl 8192]} (83. Ra3 $11 {and White is okay.} Kd7 84. Ra7+ Kd8 85. Ra8+ Ke7 86. Ra6) 83... h4 $2 {[%emt 0:00:03]} (83... Kd8 $19 84. Kg2 Kc8) 84. Kg2 $2 {[%emt 0:00:11][%mdl 8192]} (84. Ra8+ $1 $11 {and White stays safe.} Kd7 85. Kg2) 84... h3+ $2 {[%emt 0:00:09]} ({Black should play} 84... Kd8 $19 {...Kc8 is the strong threat.} 85. Ra4 Kc8 86. Ra8+ Kd7) 85. Kh2 $11 {[%emt 0:00:03]} Kd8 {[%emt 0:00:06]} 86. Ra3 {[%emt 0:00:12]} Kc7 {[%emt 0:00:06]} 87. Ra4 {[%emt 0:00:12]} Kb6 {[%emt 0:00:05]} 88. Ra3 {[%emt 0:00:07]} Kc5 {[%emt 0:00:09]} 89. Ra8 {[%emt 0:00:05]} Kd4 {[%emt 0:00:08]} 90. Ra7 {[%emt 0:00:09]} Kc3 {[%emt 0:00:09]} 91. Ra8 $1 {[%emt 0:00:07]} Rb1 {[%emt 0:00:09]} 92. Rxa2 {[%emt 0:00:05]} Rb2+ {[%emt 0:00:02]} 93. Rxb2 {[%emt 0:00:05]} Kxb2 {[%emt 0:00:02]} 94. Kxh3 {[%emt 0:01:22]} 1/2-1/2

[Event "Charlotte GM-A May 2022"]
[Site "Charlotte"]
[Date "2022.05.06"]
[Round "3.2"]
[White "Williams, Justus"]
[Black "Song, Micheal"]
[Result "0-1"]
[ECO "C40"]
[WhiteElo "2417"]
[BlackElo "2408"]
[Annotator "TA"]
[PlyCount "90"]
[EventDate "2022.05.04"]
[EventType "tourn"]
[EventCountry "USA"]
[SourceTitle "playchess.com"]
[Source "ChessBase"]
[SourceQuality "1"]
[TimeControl "5400+30"]

{[%evp 9,90,33,29,0,0,0,0,-8,34,41,35,-4,0,16,0,14,41,37,39,-10,0,0,0,0,0,0,0,-10,63,60,156,89,125,91,89,108,65,72,109,127,403,107,102,111,237,117,125,129,109,112,106,122,183,173,165,150,150,150,143,142,148,143,150,143,143,133,131,113,139,108,97,0,0,0,0,0,0,-6,-6,-633,-633,-633,-568]} 1. Nf3 {[%emt 0:01:48]} f5 {[%emt 0:00:31]} 2. d3 {[%emt 0:02:59]} Nc6 {[%emt 0:00:35]} 3. e4 {[%emt 0:02:09]} e5 {[%emt 0:00:28]} 4. d4 {[%emt 0:05:06]} fxe4 {[%emt 0:01:13]} 5. Nxe5 {[%emt 0:00:15]} Qf6 {[%emt 0:00:32]} 6. Nxc6 {[%emt 0:03:21] C40: Latvian and Elephant Gambits.} bxc6 {[%emt 0:04:14]} 7. Be2 {[%emt 0:03:23]} d5 {[%emt 0:02:39]} 8. c4 {[%emt 0:03:59] The position is equal.} Bb4+ {[%emt 0:12:31]} 9. Nc3 {[%emt 0:01:10]} Ne7 {[%emt 1:12:17] [#]} 10. a3 $146 {[%emt 0:03:40]} ({Predecessor:} 10. O-O O-O 11. cxd5 cxd5 12. Nxe4 dxe4 13. Qb3+ Be6 14. Qxb4 Nc6 15. Qc5 Nxd4 16. Bc4 Bxc4 17. Qxc4+ {1-0 (53) Yandemirov,V (2405)-Bocharov,I (2472) Kaliningrad 2015}) 10... Bxc3+ {[%emt 0:00:00]} 11. bxc3 {[%emt 0:00:08]} O-O {[%emt 0:00:00]} 12. O-O {[%emt 0:01:00]} Be6 {[%emt 0:00:00]} 13. f3 {[%emt 0:06:25]} Qg6 {[%emt 0:00:00]} 14. Ra2 {[%emt 0:10:51]} (14. fxe4 $1 $14 {was preferrable.} Bh3 15. Rxf8+ (15. Bf3 dxe4 16. Qc2 exf3 $15) 15... Rxf8 16. Bf1 (16. Bf3 $2 dxe4 17. Bxe4 Qxe4 $19)) 14... dxc4 {[%emt 0:00:00]} (14... Bh3 $5 15. Rf2 Rab8 $11) 15. fxe4 {[%emt 0:00:54]} Qxe4 {[%emt 0:00:00]} 16. Bf3 {[%emt 0:01:36]} Qg6 {[%emt 0:00:00]} 17. Re2 {[%emt 0:08:04]} Nd5 {[%emt 0:00:00]} 18. Re5 {[%emt 0:05:23]} Qf7 {[%emt 0:00:00]} (18... Nxc3 $2 19. Qe1 Rae8 20. Qxc3 $18) ({Black should try} 18... Bf7 $11) 19. Qa4 $36 {[%emt 0:06:46][%csl LRc4,LRc6][%mdl 2048] White has good play.} Rad8 {[%emt 0:00:00]} (19... Nxc3 $2 20. Qxc6 Rae8 21. Bd2 $18) (19... Qd7 $1 $14) 20. Qxc4 {[%emt 0:03:16]} (20. Qxc6 $142 Rd6 21. Qb7 (21. Qxc4 $2 Ne3 $19)) 20... Nf4 {[%emt 0:00:00]} 21. d5 {[%emt 0:12:38]} Nxd5 {[%emt 0:00:00]} 22. Qxc6 {[%emt 0:00:14]} Rd6 {[%emt 0:00:00]} 23. Qc5 {[%emt 0:00:25]} Nb6 {[%emt 0:00:00]} 24. Be2 {[%emt 0:02:29] A strong pair of Bishops.} Qxf1+ {[%emt 0:00:00]} 25. Bxf1 {[%emt 0:00:02]} Rd1 {[%emt 0:00:22][%csl Gd1,LRc1,LRf1][%cal Rf8f1] [#] Prevents Re1.} 26. h3 $1 {[%emt 0:00:39]} Rdxf1+ {[%emt 0:01:05]} 27. Kh2 {[%emt 0:00:04]} Nd7 {[%emt 0:00:31]} 28. Qc6 {[%emt 0:00:39]} Nxe5 {[%emt 0:07:32]} 29. Qxe6+ {[%emt 0:00:03]} Nf7 {[%emt 0:00:00]} 30. Bg5 {[%emt 0:01:55][%mdl 1024] White has strong compensation.} Rd1 {[%emt 0:00:00]} (30... h6 $16 31. Qc4 Rf5) 31. Bf4 $18 {[%emt 0:00:48]} c5 {[%emt 0:00:00]} 32. Qe7 {[%emt 0:00:13]} Rf1 {[%emt 0:00:00]} 33. Be3 {[%emt 0:00:54]} Re1 {[%emt 0:01:38][%cal Of7d6]} 34. Qxc5 {[%emt 0:00:04]} Re8 {[%emt 0:00:14]} 35. Bd4 {[%emt 0:00:02]} a6 {[%emt 0:00:23]} 36. Qd5 {[%emt 0:00:36]} h6 {[%emt 0:00:17]} 37. a4 {[%emt 0:01:38]} R1e2 {[%emt 0:00:37]} 38. Qc6 {[%emt 0:00:26] aiming for Qg6.} R8e6 {[%emt 0:00:12] Inhibits Qg6.} 39. Qc4 {[%emt 0:01:02]} Ng5 {[%emt 0:02:09]} 40. Bb6 {[%emt 0:00:48]} (40. Qd3 $16) 40... Nf3+ $11 {[%emt 0:00:00]} 41. Kg3 {[%emt 0:00:13]} Nd2 {[%emt 0:01:00]} 42. Qd5 {[%emt 0:03:36]} Kh7 {[%emt 0:00:00]} 43. Bd4 {[%emt 0:00:21]} Rg6+ {[%emt 0:00:00]} 44. Kh2 $2 {[%emt 0:00:18][%mdl 8192] [#]} (44. Kh4 $11) 44... Ne4 $1 $19 {[%emt 0:01:30]} 45. Kh1 {[%emt 0:01:31]} Rgxg2 {[%emt 0:00:00] Black used his chance.  Weighted Error Value: White=0.24 (precise) /Black=0.13 (very precise)} 0-1

[Event "Charlotte GM-A May 2022"]
[Site "Charlotte"]
[Date "2022.05.06"]
[Round "3.3"]
[White "Sheng, Joshua"]
[Black "Spicha, K. Alexander"]
[Result "1-0"]
[ECO "B48"]
[WhiteElo "2487"]
[BlackElo "2083"]
[Annotator "TA"]
[PlyCount "71"]
[EventDate "2022.05.04"]
[EventType "tourn"]
[EventCountry "USA"]
[SourceTitle "playchess.com"]
[Source "ChessBase"]
[SourceQuality "1"]
[TimeControl "5400+30"]

{[%evp 11,71,27,38,21,31,37,31,43,43,42,40,25,33,35,49,13,25,30,21,32,17,42,0,0,0,-25,49,24,18,30,18,18,18,18,20,16,24,24,16,14,13,20,406,395,652,210,206,203,200,203,209,204,214,197,197,203,201,186,472,462,1044,1026]} 1. e4 {[%emt 0:00:02]} c5 {[%emt 0:00:43]} 2. Nf3 {[%emt 0:00:03]} e6 {[%emt 0:00:12]} 3. d4 {[%emt 0:00:03]} cxd4 {[%emt 0:00:05]} 4. Nxd4 {[%emt 0:00:02]} Nc6 {[%emt 0:00:07]} 5. Nc3 {[%emt 0:00:02]} Qc7 {[%emt 0:00:08]} 6. Be3 {[%emt 0:00:03]} a6 {[%emt 0:00:13]} 7. Qf3 {[%emt 0:00:04] B48: Sicilian: Taimanov: 5 Nc3 Qc7 6 Be3 a6 without Be2.} Ne5 {[%emt 0:00:34]} 8. Qg3 {[%emt 0:00:03]} b5 {[%emt 0:00:11]} 9. O-O-O {[%emt 0:00:33][%cal Of1b5] White is slightly better.} Nf6 {[%emt 0:00:15] And now ...b4 would win.} 10. f4 {[%emt 0:00:02]} Neg4 {[%emt 0:00:21]} 11. Bg1 {[%emt 0:00:06]} h5 {[%emt 0:01:21] Threatens to win with ...b4. 11...h5 scores better than 11...b4.} 12. e5 {[%emt 0:00:23]} b4 $1 {[%emt 0:00:14]} 13. Na4 {[%emt 0:00:02]} ({But not} 13. exf6 bxc3 14. fxg7 Bxg7 15. Qxc3 Qxc3 16. bxc3 Bb7 $15) 13... Nd5 {[%emt 0:00:26]} 14. h3 {[%emt 0:00:03]} Nh6 {[%emt 0:00:25]} 15. f5 {[%emt 0:00:03]} Bb7 {[%emt 0:04:05]} 16. Bd3 {[%emt 0:00:14]} Be7 {[%emt 0:01:45]} 17. Kb1 {[%emt 0:00:13] Black must now prevent fxe6.} h4 $1 {[%emt 0:01:09]} 18. Qe1 {[%emt 0:00:05]} Nf4 {[%emt 0:01:00]} (18... Rc8 $1 $11) 19. Be4 {[%emt 0:00:04] aiming for Bh2.} Nxg2 {[%emt 0:00:09]} 20. Qe2 {[%emt 0:00:01]} Nf4 {[%emt 1:27:07]} 21. Qf3 Bxe4 {[%emt 0:00:00]} 22. Qxe4 {[%emt 0:00:10]} Nd5 {[%emt 0:00:00] [#]} 23. f6 $146 {[%emt 0:10:05]} ({Predecessor:} 23. Qg2 Bf8 24. Be3 Rc8 25. Bg5 g6 26. fxg6 Rg8 27. Nf3 Rxg6 28. Qd2 Nf5 29. Rhe1 {0-1 (38) Sethuraman,S (2628)-Moussard,J (2631) Sharjah 2021}) 23... gxf6 {[%emt 0:00:00]} 24. exf6 {[%emt 0:00:03]} Bxf6 {[%emt 0:00:00]} 25. Bh2 $36 {[%emt 0:03:50][%mdl 2048] Prevents Qe5. White is more active.} Qa5 {[%emt 0:00:00]} 26. Rhe1 {[%emt 0:01:03][%cal Oc2c4] Strongly threatening c4!} Ng8 $2 {[%emt 0:00:00][%mdl 8192] Black cannot hold the game after this.} (26... Qxa4 $2 27. Qxd5 Rc8 28. Qb7 $18) (26... O-O-O $11 {and Black has nothing to worry.} 27. b3 Qxa4 $1 28. Qxd5 exd5 29. bxa4 Rhe8) 27. c4 $18 {[%emt 0:11:06]} bxc3 $2 {[%emt 0:00:00] [#]} (27... Qxa4 $2 28. cxd5 Rd8 29. Nf5 $18) (27... Nge7 28. cxd5 Qxd5 29. Qxd5 Nxd5) 28. Nb3 $2 {[%emt 0:02:58]} (28. Nxe6 $1 {[%mdl 512]} fxe6 (28... c2+ 29. Kxc2) 29. Rxd5 c2+ 30. Kxc2 Qxe1 31. Qxe1 Rc8+ 32. Kb1) 28... c2+ {[%emt 0:00:00]} 29. Kxc2 {[%emt 0:00:15]} Rc8+ {[%emt 0:00:00]} 30. Kb1 {[%emt 0:00:04]} Qb4 {[%emt 0:00:00]} (30... Qb5 $2 31. Rxd5 Qc4 32. Qxc4 Rxc4 33. Nb6 $18) 31. Rxd5 {[%emt 0:05:29]} Rc4 {[%emt 0:00:00]} 32. Qe2 {[%emt 0:03:22]} Qxa4 {[%emt 0:00:00] [#]} 33. Nc5 $1 {[%emt 0:01:23][%cal Bb3c5,Bc5a6,Ba6c7][%mdl 32]} Qb4 {[%emt 0:00:00]} 34. Nxa6 {[%emt 0:01:04] Really sharp!} Qb7 {[%emt 0:00:00] [#]} (34... Qa4 {is a better defense.}) 35. Rb5 $1 {[%emt 0:00:08]} Qc6 {[%emt 0:00:00]} (35... Qxb5 $142 36. Nc7+ Rxc7 37. Qxb5 Rc6) 36. Nc7+ {[%emt 0:00:27] Weighted Error Value: White=0.18 (very precise) /Black=0.49} 1-0

[Event "Charlotte GM-A May 2022"]
[Site "Charlotte"]
[Date "2022.05.06"]
[Round "3.4"]
[White "Liang, Jason"]
[Black "Mardov, Dimitar"]
[Result "1/2-1/2"]
[ECO "D00"]
[WhiteElo "2432"]
[BlackElo "2402"]
[Annotator "TA"]
[PlyCount "101"]
[EventDate "2022.05.04"]
[EventType "tourn"]
[EventCountry "USA"]
[SourceTitle "playchess.com"]
[Source "ChessBase"]
[SourceQuality "1"]
[TimeControl "5400+30"]

{[%evp 9,101,-16,0,-6,25,7,35,15,49,43,49,54,67,55,69,54,43,0,0,0,0,0,30,37,32,0,0,0,0,0,0,-26,-24,-33,-41,-56,-27,-29,-24,-26,-20,-24,-17,-16,3,0,0,-54,-35,-48,-41,-80,-25,-27,-6,0,27,27,27,27,27,27,27,27,27,27,27,0,27,27,27,27,27,27,27,0,0,0,27,0,0,0,27,27,27,27,27,0,27,0,0,0,0,0]} 1. d4 {[%emt 0:00:03]} Nf6 {[%emt 0:00:14]} 2. Nc3 {[%emt 0:00:11]} d5 {[%emt 0:00:32]} 3. Bf4 {[%emt 0:00:09]} e6 {[%emt 0:02:51]} 4. Nb5 {[%emt 0:00:16]} Na6 {[%emt 0:00:49]} 5. e3 {[%emt 0:00:13]} c6 {[%emt 0:01:15]} 6. Nc3 {[%emt 0:00:12] D00: 1 d4 d5: Unusual lines.} Nc7 {[%emt 0:03:47]} 7. Nf3 {[%emt 0:04:46]} Be7 {[%emt 0:02:44]} 8. Bd3 {[%emt 0:02:51] [#] White is slightly better.} Nh5 $146 {[%emt 0:12:02]} ({Predecessor:} 8... O-O 9. O-O Nce8 10. e4 dxe4 11. Nxe4 Nxe4 12. Bxe4 Nf6 13. Bd3 b6 14. Qe2 Bb7 {1-0 (51) Artemiev,V (2716)-Klekowski,M (2511) Chess.com INT 2020}) 9. Be5 {[%emt 0:01:29] Strongly threatening g4.} O-O {[%emt 0:01:25]} 10. h4 {[%emt 0:03:45][%cal Of3g5] [#] Hoping for Ng5!} f5 {[%emt 0:02:25]} 11. g4 {[%emt 0:03:27]} Nf6 {[%emt 0:05:34]} 12. gxf5 {[%emt 0:02:27] White is more active.} exf5 {[%emt 0:00:23]} 13. Ng5 {[%emt 0:01:39][%cal Bf3g5,Bg5h3,Bh3f4][%mdl 32]} h6 {[%emt 0:04:43]} 14. Nh3 {[%emt 0:06:49]} Ng4 {[%emt 0:04:35]} 15. Qf3 {[%emt 0:07:38]} Nxe5 {[%emt 0:01:11]} 16. dxe5 {[%emt 0:00:07]} Bb4 {[%emt 0:08:57]} 17. O-O-O {[%emt 0:02:55]} Bxc3 {[%emt 0:00:42]} (17... Qxh4 $2 18. Rdg1 (18. Nf4 Qg4 $11) 18... Qg4 19. Rxg4 $18) 18. bxc3 {[%emt 0:00:08]} Qe7 $36 {[%emt 0:05:30][%mdl 2048] Black has some pressure.} (18... Qxh4 $2 19. Rdg1 (19. Nf4 Qg4 $11) 19... Qe7 20. Nf4 Qxe5 21. Rxh6 $18) 19. Nf4 {[%emt 0:01:30]} Rf7 {[%emt 0:01:42]} 20. Rdg1 {[%emt 0:03:39]} Qxe5 {[%emt 0:06:03]} 21. Rg6 {[%emt 0:01:10]} Ne6 {[%emt 0:33:36]} 22. Rhg1 {[%emt 0:15:43] [#] Threatens to win with Rxh6.} Nxf4 {[%emt 0:00:00]} (22... Qxc3 {looks sharper.} 23. Nxe6 Bxe6 24. Kb1 Re8) 23. Qxf4 {[%emt 0:01:03]} Qxf4 {[%emt 0:00:00]} 24. exf4 {[%emt 0:00:05]} Kf8 {[%emt 0:00:00]} 25. c4 {[%emt 0:00:29]} Bd7 {[%emt 0:00:00]} 26. Rd6 {[%emt 0:00:30]} Ke7 {[%emt 0:00:00]} 27. Rdg6 {[%emt 0:00:20]} Kf8 {[%emt 0:00:00]} 28. Kb2 {[%emt 0:06:37]} (28. Rd6 $11) 28... Re8 {[%emt 0:00:00]} 29. cxd5 {[%emt 0:01:51]} cxd5 {[%emt 0:00:00]} 30. Kc3 {[%emt 0:00:15]} Re6 {[%emt 0:00:00]} (30... Rc8+ $17 31. Kb3 Rc7) 31. Kd4 {[%emt 0:01:37]} Rxg6 {[%emt 0:00:00]} 32. Rxg6 {[%emt 0:00:09]} Rf6 {[%emt 0:00:00]} 33. Rxf6+ {[%emt 0:03:45]} gxf6 {[%emt 0:00:00]} 34. Kxd5 $11 {[%emt 0:00:11][%mdl 4096] Endgame aiming for Kd6. KB-KB} Ke7 {[%emt 0:00:00]} 35. a3 {[%emt 0:06:59]} Be6+ {[%emt 0:00:00]} 36. Kc5 {[%emt 0:00:19]} Kd7 {[%emt 0:00:00]} 37. c4 {[%emt 0:08:12][%cal Bc2c4,Bc4c5][%mdl 32]} Kc7 {[%emt 0:00:00]} 38. Kb4 {[%emt 0:01:28]} b6 {[%emt 0:00:00]} 39. c5 {[%emt 0:00:19]} Kc6 {[%emt 0:00:54] And now ...a5+ would win.} 40. Bb5+ {[%emt 0:00:12]} Kc7 {[%emt 0:00:13]} 41. Be8 {[%emt 0:01:26]} Kd8 {[%emt 0:02:10]} 42. Bc6 {[%emt 0:01:38]} (42. cxb6 $5 axb6 43. Bb5 $11) 42... Kc7 {[%emt 0:00:45]} 43. Bf3 {[%emt 0:02:31]} Bf7 {[%emt 0:02:16]} 44. Bg2 {[%emt 0:01:11]} Be6 {[%emt 0:00:17]} 45. Kb5 {[%emt 0:01:25]} Bf7 {[%emt 0:01:24]} 46. Bf1 {[%emt 0:00:39]} Bd5 {[%emt 0:00:42]} 47. Bd3 {[%emt 0:00:37]} Be6 {[%emt 0:00:33]} 48. Bc2 {[%emt 0:00:24]} Kb7 {[%emt 0:04:16]} 49. Kb4 {[%emt 0:01:21]} Kc6 {[%emt 0:00:00] White must now prevent ...a5+.} 50. Ba4+ {[%emt 0:00:13]} Kc7 {[%emt 0:00:00]} 51. Bc2 {[%emt 0:01:19] Weighted Error Value: White=0.10 (very precise) /Black=0.10 (very precise)} 1/2-1/2